Cogmind - Beta 10.1 @@@ ROGUE MODE // 2021.07.03 @ 20:08:44 Player: W-ALTER Result: Destroyed by as-22140 with Assembled Blade Performance ------------- Evolutions (0) 0 Regions Visited (4) 800 Robots Destroyed (13) 65 Value Destroyed (288) 288 Prototype IDs (23) 460 Alien Tech Used (0) 0 Bonus (300) 300 TOTAL SCORE: 1913 Bonus ------- Aligned with FarCom 300 Cogmind --------- Core Integrity 0/250 Matter 300/300 Energy 1958/2100 System Corruption 4% Temperature Cool (0) Movement Core (100) Ox1 Location -9/Mines Parts ------- > --- POWER (1) -------- (None) > --- PROPULSION (2) --- (None) > --- UTILITY (2) ------ Superbattery > --- WEAPON (2) ------- (None) > --- INVENTORY (4) ---- High-capacity Matter Pod (200) Terrain Scanner Trap Reconfigurator Peak State ------------ > --- POWER ------------ Ion Engine > --- PROPULSION ------- Aluminum Leg Aluminum Leg > --- UTILITY ---------- Superbattery Cloak of Protection > --- WEAPON ----------- Light Cannon Light Cannon > --- INVENTORY -------- Improved Heat Sink Small Battery Light Armor Plating Trap Reconfigurator [Rating: 24] Favorites ----------- Power Ion Engine Engine Ion Engine Propulsion Aluminum Leg Leg Aluminum Leg Utility Terrain Scanner Device Terrain Scanner Storage Superbattery Processor Terrain Scan Processor Protection Light Armor Plating Weapon Light Cannon Energy Gun EM Pulse Gun Ballistic Cannon Light Cannon Build | -11 -10 -10 -10 -9 ------- Run | Scr Mat Min Exi Min Slots Evolved . | . . . . . Power . | . . . . . Propulsion . | . . . . . Utility . | . . . . . Weapon . | . . . . . Parts Attached 19 | 5 5 3 5 1 Power 3 | 1 1 . 1 . Engine 3 | 1 1 . 1 . Core . | . . . . . Reactor . | . . . . . Propulsion 2 | 2 . . . . Treads . | . . . . . Leg 2 | 2 . . . . Wheel . | . . . . . Hover . | . . . . . Flight . | . . . . . Utility 10 | . 2 3 4 1 Device 4 | . . 1 2 1 Storage 2 | . . . 2 . Processor 2 | . . 2 . . Hackware . | . . . . . Protection 2 | . 2 . . . Artifact . | . . . . . Weapon 4 | 2 2 . . . Energy Gun 2 | 2 . . . . Energy Cannon . | . . . . . Ballistic Gun . | . . . . . Ballistic Cannon 2 | . 2 . . . Launcher . | . . . . . Special Weapon . | . . . . . Impact Weapon . | . . . . . Slashing Weapon . | . . . . . Piercing Weapon . | . . . . . Special Melee Weapon . | . . . . . Unidentified Prototypes 1 | . . . 1 . Parts Lost 7 | . . 1 . 6 Power 1 | . . . . 1 Propulsion 2 | . . . . 2 Utility 2 | . . 1 . 1 Weapon 2 | . . . . 2 Highest Loss Streak 6 | . . 1 . 6 Average Slot Usage (%) 99 | . 97 99 100 64 Engine 13 | . 14 14 14 7 Leg 27 | . 28 28 28 14 Device 11 | . . 12 11 7 Storage 6 | . . . 9 17 Processor 7 | . . 12 7 . Protection 1 | . 25 1 . . Ballistic Cannon 27 | . 12 28 28 17 Naked Turns . | . . . . . Heaviest Build 23 | 6 17 17 23 23 Greatest Support 20 | 20 20 20 20 20 Greatest Overweight (x) 3 | . . . 1 3 Average Overweight (x) . | . . . . 1 Largest Inventory Capacity 8 | 4 4 4 8 8 Average Capacity 4 | 4 4 4 4 4 Most Carried 5 | 2 4 4 5 5 Average Carried 3 | . 3 2 3 3 Final Capacity 8 | 4 4 4 8 4 Final Carried 5 | . 4 3 5 3 Class Distribution -------------------- 100% | Mutant Dominant Class ---------------- Mutant | -10/Materials Mutant | -10/Mines Mutant | -10/Exiles Mutant | -9/Mines Resources | -11 -10 -10 -10 -9 ----------- Run | Scr Mat Min Exi Min Matter Collected 647 | 250 202 53 142 . Remotely . | . . . . . Salvage Created 434 | 44 325 53 . 12 Parts 25 | 4 20 1 . . Haulers Intercepted . | . . . . . Recyclers Shooed 1 | . 1 . . . Parts Field Recycled . | . . . . . Retrieved Matter . | . . . . . Parts Self-Destructed . | . . . . . Prevented . | . . . . . Kills | -11 -10 -10 -10 -9 ------- Run | Scr Mat Min Exi Min Combat Hostiles Destroyed 8 | 1 4 2 . 1 Guns 1 | 1 . . . . Cannons 7 | . 4 2 . 1 Classes Destroyed 6 | 2 3 . . 1 Builder 1 | . 1 . . . Tunneler 1 | 1 . . . . Recycler 2 | . 2 . . . Mechanic 1 | . 1 . . . Grunt 7 | 1 4 2 . . Assembled 1 | . . . . 1 Best Kill Streak 4 | 2 4 1 . 1 Combat Bots Only 2 | 1 2 1 . 1 Max Kills in Single Turn 1 | 1 1 1 . 1 Gunslinging . | . . . . . Exploded . | . . . . . Melee . | . . . . . Uniques/NPCs Destroyed . | . . . . . Combat | -11 -10 -10 -10 -9 -------- Run | Scr Mat Min Exi Min Damage Taken 1292 | 42 231 184 . 835 Core 264 | 11 11 25 . 217 Absorbed by Shields . | . . . . . Core Remaining (%) 95 | 95 . . . . Volleys Fired 41 | 2 21 15 . 3 Largest 2 | 2 2 2 . 1 Hottest 80 | 80 80 70 . 35 Shots Fired 79 | 4 42 30 . 3 Gun 8 | 4 4 . . . Cannon 71 | . 38 30 . 3 Launcher . | . . . . . Special . | . . . . . Kinetic 71 | . 38 30 . 3 Thermal 4 | 2 2 . . . Explosive . | . . . . . Electromagnetic 4 | 2 2 . . . Robot Hit Streak 5 | 1 5 4 . 4 Robot Miss Streak 4 | 1 4 3 . 1 Penetration Max . | . . . . . Secondary Targets . | . . . . . Shots Hit Robots 34 | 2 19 11 . 2 Core Hits 17 | 2 8 3 . 4 Critical Hits . | . . . . . Critical Kills . | . . . . . Critical Parts Destroyed . | . . . . . Melee Attacks . | . . . . . Impact . | . . . . . Slashing . | . . . . . Piercing . | . . . . . Sneak Attacks . | . . . . . Combat Hostiles . | . . . . . Follow-up Attacks . | . . . . . Damage Inflicted 639 | 26 381 192 . 40 Guns 59 | 26 33 . . . Cannons 575 | . 348 191 . 36 Explosions . | . . . . . Melee . | . . . . . Ramming 5 | . . 1 . 4 Kinetic 575 | . 348 191 . 36 Thermal 31 | 11 20 . . . Explosive . | . . . . . Electromagnetic 28 | 15 13 . . . Impact . | . . . . . Slashing . | . . . . . Piercing . | . . . . . Highest Corruption 4 | . . . . 4 Average Corruption 3 | . . . . 3 Corruption Purged . | . . . . . Overload Shots . | . . . . . Overflow Damage 8 | . 8 . . . Projectiles 8 | . 8 . . . Explosions . | . . . . . Melee . | . . . . . Knockbacks 10 | . 5 5 . . Impact . | . . . . . Kinetic 10 | . 5 5 . . Secondary . | . . . . . Self-Inflicted Damage . | . . . . . Shots . | . . . . . Rammed 5 | . . . . 5 Targets Rammed 6 | . . 1 . 5 Kicked 1 | . . 1 . . Crushed . | . . . . . Highest Temperature 197 | 62 197 90 . 12 Average Temperature 77 | 40 99 40 . 6 Received Heat Transfer 341 | 24 132 105 . 80 Siege Activations . | . . . . . Robots Corrupted . | . . . . . Combat Hostiles . | . . . . . Parts Fried . | . . . . . Impact Corruptions . | . . . . . Robots Melted . | . . . . . Combat Hostiles . | . . . . . Parts Melted . | . . . . . Heat Transferred 75 | 25 50 . . . Parts Sabotaged . | . . . . . Parts Stolen . | . . . . . Parts Stripped . | . . . . . Power Chain Reactions . | . . . . . Missiles Intercepted . | . . . . . Alert | -11 -10 -10 -10 -9 ------- Run | Scr Mat Min Exi Min Peak Influence 136 | 25 136 62 . . Initial 52 | . 16 52 . . Average 23 | 1 43 21 . . Maximum Alert Level . | . . . . . Low Security (%) 100 | 100 100 100 . 100 Level 1 . | . . . . . Level 2 . | . . . . . Level 3 . | . . . . . Level 4 . | . . . . . Level 5 . | . . . . . High Security . | . . . . . Max Security . | . . . . . Squads Dispatched 2 | . 2 . . . Investigation 1 | . 1 . . . Extermination . | . . . . . Reinforcement 1 | . 1 . . . Assault . | . . . . . Garrison . | . . . . . Intercept . | . . . . . Construction Impeded . | . . . . . Haulers Reinforced . | . . . . . Stealth | -11 -10 -10 -10 -9 --------- Run | Scr Mat Min Exi Min Distress Signals . | . . . . . Communications Jammed . | . . . . . Distress Signals . | . . . . . Times Spotted 37 | 1 9 3 . 24 Peak Tracking Total 24 | 1 3 2 . 24 Tactical Retreats 2 | . 1 1 . . Traps | -11 -10 -10 -10 -9 ------- Run | Scr Mat Min Exi Min Traps Triggered 1 | . 1 . . . Indirectly . | . . . . . Trap Hack Attempts . | . . . . . Triggered . | . . . . . Disarmed . | . . . . . Reprogrammed . | . . . . . Reused . | . . . . . Traps Extracted . | . . . . . Installed . | . . . . . Triggered . | . . . . . Machines | -11 -10 -10 -10 -9 ---------- Run | Scr Mat Min Exi Min Machines Disabled . | . . . . . Max in Single Turn . | . . . . . Machines Sabotaged . | . . . . . Garrisons Compromised . | . . . . . Overloaded Fab Kills . | . . . . . Fab Network Shutdowns . | . . . . . Hacking | -11 -10 -10 -10 -9 --------- Run | Scr Mat Min Exi Min Machines Accessed 6 | . 1 . 5 . Terminals 1 | . 1 . . . Fabricators . | . . . . . Repair Stations . | . . . . . Recycling Units . | . . . . . Scanalyzers . | . . . . . Garrison Access . | . . . . . Total Hacks 52 | . 2 . 50 . Successful 52 | . 2 . 50 . Failed . | . . . . . Catastrophic . | . . . . . Database Lockouts . | . . . . . Manual 10 | . . . 10 . Terminals 2 | . 2 . . . Fabricators . | . . . . . Repair Stations . | . . . . . Recycling Units . | . . . . . Scanalyzers . | . . . . . Garrison Access . | . . . . . Terminal Hacks 52 | . 2 . 50 . Record 49 | . . . 49 . Hauler Manifests 1 | . 1 . . . Zone Layout 1 | . 1 . . . EX-Prototype ID Bank 1 | . . . 1 . Fabricator Hacks . | . . . . . Repair Station Hacks . | . . . . . Recycling Unit Hacks . | . . . . . Scanalyzer . | . . . . . Garrison Access Hacks . | . . . . . Unauthorized Hacks . | . . . . . Terminals . | . . . . . Fabricators . | . . . . . Repair Stations . | . . . . . Recycling Units . | . . . . . Scanalyzers . | . . . . . Garrison Access . | . . . . . Data Cores Recovered . | . . . . . Used . | . . . . . Hacking Detections 1 | . 1 . . . Full Trace Events . | . . . . . Feedback Events . | . . . . . Feedback Blocked . | . . . . . Robot Schematics Acquired . | . . . . . Robots Built . | . . . . . Matter . | . . . . . Time . | . . . . . Total Robot Build Rating . | . . . . . Part Schematics Acquired . | . . . . . Parts Built . | . . . . . Matter . | . . . . . Time . | . . . . . Total Part Build Rating . | . . . . . Parts Repaired . | . . . . . Time . | . . . . . Parts Recycled . | . . . . . Recycled Matter . | . . . . . Retrieved Matter . | . . . . . Retrieved Components . | . . . . . Parts Scanalyzed . | . . . . . Part Schematics Acquired . | . . . . . Parts Damaged . | . . . . . Bothacking | -11 -10 -10 -10 -9 ------------ Run | Scr Mat Min Exi Min Used RIF Installer . | . . . . . Robots Hacked . | . . . . . Non-combat . | . . . . . Combat . | . . . . . Robot Hacks Applied . | . . . . . Relay Couplers Released . | . . . . . Robots Rewired . | . . . . . Allies Hacked . | . . . . . Hacks Repelled . | . . . . . Allies | -11 -10 -10 -10 -9 -------- Run | Scr Mat Min Exi Min Total Allies . | . . . . . Largest Group . | . . . . . Highest-Rated Group . | . . . . . Highest-Rated Ally . | . . . . . Total Orders . | . . . . . Ally Attacks . | . . . . . Total Damage . | . . . . . Kills . | . . . . . Allies Corrupted . | . . . . . Allies Melted . | . . . . . Intel | -11 -10 -10 -10 -9 ------- Run | Scr Mat Min Exi Min Robot Analysis Total . | . . . . . Derelict Logs Recovered 1 | . . 1 . . Drone Launches . | . . . . . Drone Recoveries . | . . . . . Exploration | -11 -10 -10 -10 -9 ------------- Run | Scr Mat Min Exi Min Turns Passed 5021 | 87 262 1205 3432 35 Spaces Moved 1376 | 71 147 198 946 14 Core 21 | 20 . . . 1 Treads . | . . . . . Legs 1355 | 51 147 198 946 13 Wheels . | . . . . . Hover . | . . . . . Flight . | . . . . . Fastest Speed 50 | 50 120 120 120 150 Average Speed 127 | 100 120 120 132 157 Slowest Speed 200 | 120 120 120 150 200 Overloaded Moves . | . . . . . Propulsion Burnouts . | . . . . . Robots Hopped . | . . . . . Cave-ins Triggered . | . . . . . Exploration Rate (%) 32 | 5 25 32 95 7 Regions Visited 4 Branch Regions 3 Pre-discovered Areas 1 | . . . 1 . Known Exits Taken . | . . . . . Unknown Exits Taken 4 | 1 1 1 1 . Scrap Searched . | . . . . . Spaces Dug . | . . . . . Terrain Destroyed . | . . . . . Melee . | . . . . . Projectile . | . . . . . AOE . | . . . . . Terrain Rammed . | . . . . . Walls Destroyed . | . . . . . Machines Disabled . | . . . . . Actions | -11 -10 -10 -10 -9 --------- Run | Scr Mat Min Exi Min Total 4565 | 82 192 1136 3130 25 Wait 3084 | . 8 915 2161 . Move 1372 | 70 146 197 945 14 Hop . | . . . . . Pick Up 25 | 5 8 2 10 . Fast Attach 1 | . . . 1 . Attach 17 | 5 4 3 4 1 Detach 3 | . 1 2 . . Swap 1 | . 1 . . . Drop 15 | . 3 1 9 2 Fire 41 | 2 21 15 . 3 Melee . | . . . . . Ram 5 | . . . . 5 Kick 1 | . . 1 . . Crush . | . . . . . Escape Stasis . | . . . . . Rewire . | . . . . . Trap . | . . . . . Miscellaneous . | . . . . . Route ------- -11/Scrapyard -10/Materials -10/Mines -10/Exiles (discovered 2 exits: [*Min x2]) -9/Mines History --------- Turn | Location | Event 2 | -11/Scrapyard | Met Revision 17 69 | -11/Scrapyard | Discovered new exit (range 8) 88 | -11/Scrapyard | Entered Materials 197 | -10/Materials | Discovered new exit (range 12) 311 | -10/Materials | Build established: Mutant 350 | -10/Materials | Entered Mines 357 | -10/Mines | Learned Materials emergency access door positions 740 | -10/Mines | Discovered new exit (range 14) 1555 | -10/Mines | Entered Exiles 1962 | -10/Exiles | Discovered new exit (range 15) 2113 | -10/Exiles | Met 8R-AWN 2197 | -10/Exiles | Met EX-HEX 2274 | -10/Exiles | Met EX-BIN 2296 | -10/Exiles | Aligned with FarCom system 2297 | -10/Exiles | Given EX-Vault access code 3031 | -10/Exiles | Opened EX-Vault 3037 | -10/Exiles | Found Prototype Device 3039 | -10/Exiles | Identified Cloak of Protection 3045 | -10/Exiles | Found Superbattery 3276 | -10/Exiles | Found Trap Reconfigurator 3631 | -10/Exiles | Warned to stay clear of 0b10 Research branches 3680 | -10/Exiles | Met EX-DEC 3697 | -10/Exiles | Learned location of Zion (-7) 4104 | -10/Exiles | Discovered new exit (range 15) 4485 | -10/Exiles | Visited The Gauntlet 4987 | -10/Exiles | Stole three prototypes: Superbattery, Trap Reconfigurator, Cloak of Protection 4987 | -10/Exiles | Entered Mines 4988 | -9/Mines | Assembled infested the area 4993 | -9/Mines | Assisted by a Guerilla fighting off Assembled 5019 | -9/Mines | Core integrity fell below 50% 5022 | -9/Mines | Core integrity fell below 20% 5022 | -9/Mines | Destroyed by as-22140 with Assembled Blade Last Messages --------------- 05000_ EV-Y40(h) system terminally corrupted. 05002_ Ion Engine destroyed. 05002_ Lgt. Cannon destroyed. Your per-turn energy upkeep is currently significantly in the negative, which may be okay for now but be prepared to manage it more closely. 05003_ Knocked back. 05006_ as-77843 destroyed. 05006_ T-07 Excavator destroyed. 05007_ as-76560 destroyed. 05011_ Aluminum Leg destroyed. 05011_ System corrupted by crushing effect (+1). 05011_ as-79278 shuts down. 05014_ Lgt. Cannon destroyed. 05014_ System corrupted by crushing effect (+3). 05017_ Critical hit. 05017_ Cloak of Protection destroyed. 05018_ Slammed into as-02058. 05020_ Slammed into as-55327. 05021_ Slammed into as-02058. 05022_ Slammed into as-22140. Map ----- +----------------------------------------------------+ | | | | | | | | | | | | | | | | | | | | | | | | | | | | | | | | | | | | | | | ??????????????????????????????????? | | ?????????####?????????????????????? | | ????????## ##????????????????????? | | ???????## #????????????????????? | | ???????# #????##########??????? | | ??????## a a###### #??????? | | ??????# %@aaaa% a ! #??????? | | ??????# aaaaaa aaa ] ! #??????? | | ??????## a a###### = #??????? | | ???????## #????# %=[ #??????? | | ????????# #????# ""=% #??????? | | ????????## ##???#" """% #??????? | | ?????????####????## """[ #??????? | | ??????????????????# %= #??????? | | ??????????????????##### ###??????? | | ??????????????????????# #????????? | | ?????????????????????? #????????? | | ?????????????????????? #????????? | | ?????????????????????? ##????????? | | ????????????????????? % ??????????? | | ????????????????????? ??????????? | | ????????????????????? ??????????? | | ??????????????????????? ??????????? | | ??????????????????????????????????? | | ??????????????????????????????????? | | ??????????????????????????????????? | | ??????????????????????????????????? | | ??????????????????????????????????? | | ??????????????????????????????????? | | ??????????????????????????????????? | | ??????????????????????????????????? | +----------------------------------------------------+ Best States ------------- Heat Dissipation 25 Energy Generation 10 Energy Capacity 2250 Matter Stores 300 Matter Capacity 300 Sight Range 16 Terrain Scan Range 14 Terrain Scan Density 85 Cloak Strength 5 Armor Coverage 300 Evasion (%) 50 Item Schematics ----------------- None Robot Schematics ------------------ None Fabricated ------------ Nothing Alien Tech Used ----------------- None Achievements -------------- Hunted Risk Taker Shopping List Tourist Challenges ------------ None Game ------ Seed AssembledSwordDisintegrator Manual? 0 Play Time 00:43:06 Cumulative 2.7 hours Start 2021.07.03 @ 02:15:58 End 2021.07.03 @ 20:08:44 Sessions 3 Manual Loads 0 Difficulty Rogue Special Mode None Game No. 3 Rogue 3 Adventurer 0 Explorer 0 Win Type - Total 0 Types 0/0/0/0/0/0/0/0/0 Lore% 11 Gallery% 4 Achievement% 6 Wizard Run 0 Options --------- ASCII 0 Keyboard 0 Movement Mouse Keybinds 0 Fullscreen 1 Font 12/Smallcaps Map View 83x54 Tactical HUD 1 Map Filters NONE Filters NONE Steam X RUN: a3c75c69-43a1-457b-86ad-239f1f5557d3